fUST/lending_fUST_20240828
["ID","MTS","AMOUNT","RATE_DAILY","PERIOD"]
[336437459,1724826649755,-314.76735619,0.00013599,2]
[336437460,1724826649769,-271.82761531,0.00013599,2]
[336437461,1724826649779,-500.0,0.00013678,2]
[336437462,1724826649789,-817.98661284,0.00013697,2]
[336437463,1724826649800,-155.04683307,0.00013697,2]
[336437464,1724826649811,-500.0,0.00013697,2]
[336437465,1724826649823,-500.0,0.00013697,2]
[336437466,1724826649834,-475.05411845,0.00013698,2]
[336437467,1724826649844,-500.0,0.00013698,2]
[336437468,1724826649853,-195.5494493,0.00013698,2]
[336437469,1724826649863,-500.0,0.00013698,2]
[336437470,1724826649876,-500.0,0.00013698,2]
[336437471,1724826649885,-500.0,0.00013698,2]
[336437472,1724826649895,-500.0,0.00013698,2]
[336437473,1724826649906,-500.0,0.00013698,2]
[336437474,1724826649917,-500.0,0.00013698,2]
[336437475,1724826649927,-500.0,0.00013698,2]
[336437476,1724826649937,-500.0,0.00013698,2]
[336437477,1724826649947,-564.54675196,0.00013698,2]
[336437478,1724826649957,-500.0,0.00013698,2]
[336437479,1724826649969,-500.0,0.00013698,2]
[336437480,1724826649981,-500.0,0.00013698,2]
[336437481,1724826649992,-500.0,0.00013698,2]
[336437482,1724826650001,-500.0,0.00013698,2]
[336437483,1724826650011,-500.0,0.00013698,2]
[336437484,1724826650021,-500.0,0.00013698,2]
[336437485,1724826650030,-500.0,0.00013698,2]
[336437486,1724826650041,-500.0,0.00013698,2]
[336437487,1724826650052,-500.0,0.00013698,2]
[336437488,1724826650063,-500.0,0.00013698,2]
[336437489,1724826650073,-500.0,0.00013698,2]
[336437490,1724826650083,-953.29328483,0.00013698,2]
[336437491,1724826650094,-953.29328483,0.00013698,2]
[336437492,1724826650104,-953.29328483,0.00013698,2]
[336437493,1724826650114,-953.29328483,0.00013698,2]
[336437494,1724826650124,-953.29328483,0.00013698,2]
[336437495,1724826650134,-953.29328483,0.00013698,2]
[336437496,1724826650144,-953.29328483,0.00013698,2]
[336437497,1724826650154,-953.29328483,0.00013698,2]
[336437498,1724826650164,-953.29328483,0.00013698,2]
[336437499,1724826650174,-1143.95194178,0.00013698,2]
[336437500,1724826650184,-1143.95194178,0.00013698,2]
[336437501,1724826650194,-370.81,0.00013698,2]
[336437502,1724826650204,-193.82,0.00013698,2]
[336437503,1724826650215,-1146.51,0.00013698,2]
[336437504,1724826650227,-500.0,0.00013698,2]
[336437505,1724826650238,-548.6,0.00013698,2]
[336437506,1724826650247,-565.26,0.00013698,2]
[336437507,1724826650257,-1003.22,0.00013698,2]
[336437508,1724826650269,-2433.08,0.00013698,2]
[336437509,1724826650279,-500.0,0.00013698,2]
[336437510,1724826650288,-500.0,0.00013698,2]
[336437511,1724826650299,-500.0,0.00013698,2]
[336437512,1724826650309,-6552.3,0.00013698,2]
[336437513,1724826650318,-739.85,0.00013698,2]
[336437514,1724826650328,-500.0,0.00013698,2]
[336437515,1724826650338,-500.0,0.00013698,2]
[336437516,1724826650347,-578.56,0.00013698,2]
[336437517,1724826650357,-1616.55,0.00013698,2]
[336437518,1724826650367,-500.0,0.00013698,2]
[336437519,1724826650376,-500.0,0.00013698,2]
[336437520,1724826650385,-2129.87511377,0.00013698,2]
[336437521,1724826650395,-500.0,0.00013698,2]
[336437522,1724826650406,-3897.7,0.00013698,2]
[336437523,1724826650415,-500.0,0.00013698,2]
[336437524,1724826650425,-500.0,0.00013698,2]
[336437525,1724826650435,-500.0,0.00013698,2]
[336437526,1724826650445,-190.35,0.00013698,2]
[336437527,1724826650456,-500.0,0.00013698,2]
[336437528,1724826650467,-154.81078475,0.00013698,2]
[336437529,1724826650477,-500.0,0.00013698,2]
[336437530,1724826650486,-1110.67,0.00013698,2]
[336437531,1724826650496,-1339.88,0.00013698,2]
[336437532,1724826650508,-2767.7,0.00013698,2]
[336437533,1724826650519,-500.0,0.00013698,2]
[336437534,1724826650531,-3000.0,0.00013699,2]
[336437535,1724826650541,-286.720188,0.00013699,2]
[336437536,1724826650550,-500.0,0.00013699,2]
[336437537,1724826650561,-363.76989466,0.00013699,2]
[336437538,1724826650571,-500.0,0.00013699,2]
[336437539,1724826650583,-500.0,0.00013699,2]
[336437540,1724826650594,-500.0,0.00013699,2]
[336437541,1724826650605,-150.112233,0.000137,2]
[336437542,1724826650615,-154.56721181,0.00013792,2]
[336437543,1724826650625,-150.112233,0.000139,2]
[336437544,1724826650635,-150.112233,0.000139,2]
[336437545,1724826650646,-7985.02986348,0.00013971,2]
[336437546,1724826650656,-7985.02986348,0.00013971,2]
[336437547,1724826650667,-1146.51,0.00013972,2]
[336437548,1724826650678,-500.06,0.00013972,2]
[336437549,1724826650688,-548.6,0.00013972,2]
[336437550,1724826650699,-565.26,0.00013972,2]
[336437551,1724826650710,-1003.22,0.00013972,2]
[336437552,1724826650721,-2433.08,0.00013972,2]
[336437553,1724826650731,-500.0,0.00013972,2]
[336437554,1724826650744,-500.0,0.00013972,2]
[336437555,1724826650755,-394.77,0.00013972,2]
[336437556,1724826650765,-6552.3,0.00013972,2]
[336437557,1724826650774,-739.85,0.00013972,2]
[336437558,1724826650784,-500.0,0.00013972,2]
[336437559,1724826650794,-578.56,0.00013972,2]
[336437560,1724826650803,-1616.55,0.00013972,2]
[336437561,1724826650812,-500.0,0.00013972,2]
[336437562,1724826650821,-500.0,0.00013972,2]
[336437563,1724826650833,-571.55740919,0.00013972,2]
[336437564,1724826650845,-3897.7,0.00013972,2]
[336437565,1724826650855,-630.52,0.00013972,2]
[336437566,1724826650867,-356.56,0.00013972,2]
[336437567,1724826650879,-217.75,0.00013972,2]
[336437568,1724826650889,-500.0,0.00013972,2]
[336437569,1724826650899,-500.0,0.00013972,2]
[336437570,1724826650909,-1110.67,0.00013972,2]
[336437571,1724826650921,-1339.88,0.00013972,2]
[336437572,1724826650932,-2767.7,0.00013972,2]
[336437573,1724826650943,-287.51,0.00013972,2]
[336437574,1724826650953,-324.0,0.00014,2]
[336437575,1724826650968,-236.11350432,0.00014024,2]
[336437576,1724826650979,-7957.87274185,0.00014078,2]
[336437577,1724826650990,-600.0,0.00014084,2]
[336437578,1724826651000,-150.112233,0.000141,2]
[336437579,1724826651012,-150.112233,0.000142,2]
[336437580,1724826651023,-154.55950541,0.00014245,2]
[336437581,1724826651033,-500.0,0.00014245,2]
[336437582,1724826651047,-1146.51,0.00014246,2]
[336437583,1724826651058,-548.6,0.00014246,2]
[336437584,1724826651069,-565.26,0.00014246,2]
[336437585,1724826651080,-1003.22,0.00014246,2]
[336437586,1724826651090,-2433.08,0.00014246,2]
[336437587,1724826651100,-500.0,0.00014246,2]
[336437588,1724826651109,-516.62,0.00014246,2]
[336437589,1724826651120,-6552.3,0.00014246,2]
[336437590,1724826651130,-739.85,0.00014246,2]
[336437591,1724826651141,-500.0,0.00014246,2]
[336437592,1724826651152,-578.56,0.00014246,2]
[336437593,1724826651163,-1616.55,0.00014246,2]
[336437594,1724826651174,-500.0,0.00014246,2]
[336437595,1724826651184,-500.0,0.00014246,2]
[336437596,1724826651196,-3897.7,0.00014246,2]
[336437597,1724826651206,-500.0,0.00014246,2]
[336437598,1724826651218,-475.10908534,0.00014246,2]
[336437599,1724826651228,-1110.67,0.00014246,2]
[336437600,1724826651237,-1339.88,0.00014246,2]
[336437601,1724826651248,-2367.1205984,0.00014246,2]
[336437603,1724826651616,-500.0,0.00010958,2]
[336437604,1724826651628,-500.0,0.00011232,2]
[336437605,1724826651639,-500.0,0.00011506,2]
[336437606,1724826651650,-241.6169674,0.00012436,2]
[336437607,1724826651661,-500.0,0.00012602,2]
[336437608,1724826651671,-500.0,0.00012876,2]
[336437609,1724826651681,-500.0,0.0001315,2]
[336437610,1724826651691,-500.0,0.00013424,2]
[336437611,1724826651700,-500.0,0.00013698,2]
[336437612,1724826651712,-500.0,0.00013972,2]
[336437613,1724826651724,-400.5794016,0.00014246,2]
[336437614,1724826651735,-500.0,0.00014246,2]
[336437615,1724826651745,-750.0,0.00014247,2]
[336437616,1724826651755,-150.112233,0.000143,2]
[336437617,1724826651765,-600.0,0.0001435,2]
[336437618,1724826651775,-600.0,0.0001435,2]
[336437619,1724826651784,-150.112233,0.000144,2]
[336437620,1724826651793,-1146.51,0.0001452,2]
[336437621,1724826651804,-548.6,0.0001452,2]
[336437622,1724826651815,-565.26,0.0001452,2]
[336437623,1724826651825,-1003.22,0.0001452,2]
[336437624,1724826651836,-2433.08,0.0001452,2]
[336437625,1724826651847,-269.72,0.0001452,2]
[336437626,1724826651856,-6552.3,0.0001452,2]
[336437627,1724826651867,-739.85,0.0001452,2]
[336437628,1724826651877,-600.84,0.0001452,2]
[336437629,1724826651888,-578.56,0.0001452,2]
[336437630,1724826651899,-1616.55,0.0001452,2]
[336437631,1724826651909,-500.0,0.0001452,2]
[336437632,1724826651921,-637.67,0.0001452,2]
[336437633,1724826651934,-3897.7,0.0001452,2]
[336437634,1724826651945,-500.0,0.0001452,2]
[336437635,1724826651955,-1110.67,0.0001452,2]
[336437636,1724826651969,-1339.88,0.0001452,2]
[336437637,1724826651982,-2767.7,0.0001452,2]
[336437638,1724826651992,-500.0,0.0001452,2]
[336437639,1724826652002,-150.112233,0.000146,2]
[336437640,1724826652015,-150.112233,0.000147,2]
[336437641,1724826652032,-442.23939777,0.00014773,2]
[336437642,1724826652043,-1146.51,0.00014794,2]
[336437643,1724826652054,-548.6,0.00014794,2]
[336437644,1724826652064,-565.26,0.00014794,2]
[336437645,1724826652073,-1003.22,0.00014794,2]
[336437646,1724826652082,-2433.08,0.00014794,2]
[336437647,1724826652092,-6552.3,0.00014794,2]
[336437648,1724826652101,-739.85,0.00014794,2]
[336437649,1724826652111,-578.56,0.00014794,2]
[336437650,1724826652120,-1616.55,0.00014794,2]
[336437651,1724826652129,-500.0,0.00014794,2]
[336437652,1724826652139,-3897.7,0.00014794,2]
[336437653,1724826652150,-500.0,0.00014794,2]
[336437654,1724826652159,-1110.67,0.00014794,2]
[336437655,1724826652169,-1339.88,0.00014794,2]
[336437656,1724826652179,-2767.7,0.00014794,2]
[336437657,1724826652190,-7957.87274185,0.00014968,2]
[336437658,1724826652320,-1146.51,0.00015068,2]
[336437659,1724826652331,-548.6,0.00015068,2]
[336437660,1724826652341,-565.26,0.00015068,2]
[336437661,1724826652350,-1003.22,0.00015068,2]
[336437662,1724826652360,-2433.08,0.00015068,2]
[336437663,1724826652369,-6552.3,0.00015068,2]
[336437664,1724826652379,-739.85,0.00015068,2]
[336437665,1724826652388,-578.56,0.00015068,2]
[336437666,1724826652398,-1616.55,0.00015068,2]
[336437667,1724826652407,-500.0,0.00015068,2]
[336437668,1724826652417,-3897.7,0.00015068,2]
[336437669,1724826652428,-500.0,0.00015068,2]
[336437670,1724826652437,-1110.67,0.00015068,2]
[336437671,1724826652449,-1339.88,0.00015068,2]
[336437672,1724826652459,-2767.7,0.00015068,2]
[336437673,1724826652468,-150.112233,0.000151,2]
[336437674,1724826652480,-1146.51,0.00015342,2]
[336437675,1724826652490,-548.6,0.00015342,2]
[336437676,1724826652500,-565.26,0.00015342,2]
[336437677,1724826652510,-1003.22,0.00015342,2]
[336437678,1724826652524,-2433.08,0.00015342,2]
[336437679,1724826652538,-6552.3,0.00015342,2]
[336437680,1724826652547,-739.85,0.00015342,2]
[336437681,1724826652558,-578.56,0.00015342,2]
[336437682,1724826652569,-1616.55,0.00015342,2]
[336437683,1724826652579,-500.0,0.00015342,2]
[336437684,1724826652589,-3897.7,0.00015342,2]
[336437685,1724826652601,-419.9,0.00015342,2]
[336437686,1724826652611,-1110.67,0.00015342,2]
[336437687,1724826652621,-1339.88,0.00015342,2]
[336437688,1724826652632,-2767.7,0.00015342,2]
[336437689,1724826652641,-150.112233,0.000156,2]
[336437690,1724826652652,-1146.51,0.00015616,2]
[336437691,1724826652662,-548.6,0.00015616,2]
[336437692,1724826652672,-565.26,0.00015616,2]
[336437693,1724826652682,-1003.22,0.00015616,2]
[336437694,1724826652691,-2433.08,0.00015616,2]
[336437695,1724826652703,-6552.3,0.00015616,2]
[336437696,1724826652713,-739.85,0.00015616,2]
[336437697,1724826652723,-578.56,0.00015616,2]
[336437698,1724826652734,-1616.55,0.00015616,2]
[336437699,1724826652745,-500.0,0.00015616,2]
[336437700,1724826652756,-3897.7,0.00015616,2]
[336437701,1724826652767,-1110.67,0.00015616,2]
[336437702,1724826652781,-1339.88,0.00015616,2]
[336437703,1724826652792,-2767.7,0.00015616,2]
[336437704,1724826652801,-5583.70176656,0.0001569,2]
[336437705,1724826652812,-1146.51,0.0001589,2]
[336437706,1724826652824,-548.6,0.0001589,2]
[336437707,1724826652835,-565.26,0.0001589,2]
[336437708,1724826652844,-1003.22,0.0001589,2]
[336437709,1724826652856,-2433.08,0.0001589,2]
[336437710,1724826652866,-6552.3,0.0001589,2]
[336437711,1724826652878,-739.85,0.0001589,2]
[336437712,1724826652888,-578.56,0.0001589,2]
[336437713,1724826652899,-1616.55,0.0001589,2]
[336437714,1724826652909,-500.0,0.0001589,2]
[336437715,1724826652918,-3897.7,0.0001589,2]
[336437716,1724826652932,-1110.67,0.0001589,2]
[336437717,1724826652943,-1339.88,0.0001589,2]
[336437718,1724826652954,-2767.7,0.0001589,2]
[336437719,1724826652968,-150.112233,0.00016,2]
[336437720,1724826652980,-1126.2,0.00016,30]
[336437721,1724826652991,-5583.70176656,0.00016099,2]
[336437722,1724826653002,-1146.51,0.00016164,2]
[336437723,1724826653014,-548.6,0.00016164,2]
[336437724,1724826653026,-565.26,0.00016164,2]
[336437725,1724826653037,-1003.22,0.00016164,2]
[336437726,1724826653050,-2433.08,0.00016164,2]
[336437727,1724826653060,-6552.3,0.00016164,2]
[336437728,1724826653071,-739.85,0.00016164,2]
[336437729,1724826653083,-578.56,0.00016164,2]
[336437730,1724826653094,-1616.55,0.00016164,2]
[336437731,1724826653105,-500.0,0.00016164,2]
[336437732,1724826653116,-3897.7,0.00016164,2]
[336437733,1724826653128,-1110.67,0.00016164,2]
[336437734,1724826653139,-1339.88,0.00016164,2]
[336437735,1724826653150,-2767.7,0.00016164,2]
[336437736,1724826653159,-5583.70176656,0.00016179,2]
[336437737,1724826653170,-150.112233,0.000164,2]
[336437738,1724826653180,-1146.51,0.00016438,2]
[336437739,1724826653190,-548.6,0.00016438,2]
[336437740,1724826653199,-565.26,0.00016438,2]
[336437741,1724826653208,-1003.22,0.00016438,2]
[336437742,1724826653217,-2433.08,0.00016438,2]
[336437743,1724826653227,-6552.3,0.00016438,2]
[336437744,1724826653236,-739.85,0.00016438,2]
[336437745,1724826653246,-578.56,0.00016438,2]
[336437746,1724826653257,-1616.55,0.00016438,2]
[336437747,1724826653267,-500.0,0.00016438,2]
[336437748,1724826653278,-3897.7,0.00016438,2]
[336437749,1724826653289,-1110.67,0.00016438,2]
[336437750,1724826653301,-1339.88,0.00016438,2]
[336437751,1724826653311,-2767.7,0.00016438,2]
[336437752,1724826653323,-5583.70176656,0.00016494,2]
[336437753,1724826653333,-1012.24206773,0.000167,2]
[336437754,1724826653345,-1146.51,0.00016712,2]
[336437755,1724826653355,-548.6,0.00016712,2]
[336437756,1724826653365,-565.26,0.00016712,2]
[336437757,1724826653374,-1003.22,0.00016712,2]
[336437758,1724826653384,-2433.08,0.00016712,2]
[336437759,1724826653393,-6552.3,0.00016712,2]
[336437760,1724826653403,-739.85,0.00016712,2]
[336437761,1724826653412,-578.56,0.00016712,2]
[336437762,1724826653424,-1616.55,0.00016712,2]
[336437763,1724826653435,-500.0,0.00016712,2]
[336437764,1724826653446,-3897.7,0.00016712,2]
[336437765,1724826653457,-1110.67,0.00016712,2]
[336437766,1724826653467,-1339.88,0.00016712,2]
[336437767,1724826653479,-2767.7,0.00016712,2]
[336437768,1724826653490,-337.13775619,0.00016741,2]
[336437769,1724826653502,-5583.70176656,0.00016794,2]
[336437770,1724826653513,-150.112233,0.000168,2]
[336437771,1724826653525,-1146.51,0.00016986,2]
[336437772,1724826653534,-548.6,0.00016986,2]
[336437773,1724826653543,-565.26,0.00016986,2]
[336437774,1724826653552,-1003.22,0.00016986,2]
[336437775,1724826653562,-2433.08,0.00016986,2]
[336437776,1724826653571,-6552.3,0.00016986,2]
[336437777,1724826653580,-739.85,0.00016986,2]
[336437778,1724826653589,-578.56,0.00016986,2]
[336437779,1724826653599,-1616.55,0.00016986,2]
[336437780,1724826653608,-500.0,0.00016986,2]
[336437781,1724826653618,-3897.7,0.00016986,2]
[336437782,1724826653628,-1110.67,0.00016986,2]
[336437783,1724826653637,-1339.88,0.00016986,2]
[336437784,1724826653646,-2767.7,0.00016986,2]
[336437785,1724826653656,-5583.70176656,0.00017131,2]
[336437786,1724826653665,-3216.003,0.00017138,2]
[336437787,1724826653677,-154.57491897,0.00017208,2]
[336437788,1724826653691,-1146.74,0.0001726,2]
[336437789,1724826653705,-548.69,0.0001726,2]
[336437790,1724826653719,-565.37,0.0001726,2]
[336437791,1724826653731,-1003.45,0.0001726,2]
[336437792,1724826653742,-2433.17065685,0.0001726,2]
[336437793,1724826653757,-6552.49066048,0.0001726,2]
[336437794,1724826653770,-739.91,0.0001726,2]
[336437796,1724826653784,-578.68657277,0.0001726,2]
[336437797,1724826653798,-1616.71029094,0.0001726,2]
[336437798,1724826653812,-385.9,0.0001726,2]
[336437799,1724826653827,-3897.92,0.0001726,2]
[336437800,1724826653840,-1110.76,0.0001726,2]
[336437801,1724826653854,-1339.89,0.0001726,2]
[336437802,1724826653868,-2767.92852083,0.0001726,2]
[336437803,1724826653884,-150.0,0.00017355,2]
[336437804,1724826653896,-522.0,0.00017355,2]
[336437805,1724826653912,-5583.70176656,0.00017384,2]
[336437806,1724826653925,-5583.70176656,0.00017624,2]
[336437807,1724826653939,-1490.40798,0.00017927,2]
[336437808,1724826653951,-1490.40798,0.00017927,2]
[336437809,1724826653962,-151.0,0.00017927,2]
[336437810,1724826653975,-5583.70176656,0.00017973,2]
[336437811,1724826653988,-5583.70176656,0.00018206,2]
[336437812,1724826654000,-5583.70176656,0.00018515,2]
[336437813,1724826654013,-500.0,0.00018573,2]
[336437814,1724826654027,-700.0,0.00018656,2]
[336437815,1724826654040,-2200.0,0.00018731,2]
[336437816,1724826654053,-5583.70176656,0.00018754,2]
[336437817,1724826654067,-1500.0,0.00018772,2]
[336437818,1724826654079,-566.892905,0.00018826,2]
[336437819,1724826654092,-566.892905,0.00018826,2]
[336437820,1724826654102,-151.0,0.00018826,2]
[336437821,1724826654112,-151.0,0.00018826,2]
[336437822,1724826654123,-1309.59179,0.00018826,2]
[336437823,1724826654133,-1309.59179,0.00018826,2]
[336437824,1724826654146,-182.405385,0.00018826,2]
[336437825,1724826654158,-182.405385,0.00018826,2]
[336437826,1724826654171,-282.044946,0.00018826,2]
[336437827,1724826654180,-282.044946,0.00018826,2]
[336437828,1724826654194,-331.004609,0.00018826,2]
[336437829,1724826654205,-331.004609,0.00018826,2]
[336437830,1724826654217,-151.0,0.00018826,2]
[336437831,1724826654229,-588.081748,0.00018826,2]
[336437832,1724826654240,-588.081748,0.00018826,2]
[336437833,1724826654250,-151.0,0.00018826,2]
[336437834,1724826654261,-206.519982,0.00018826,2]
[336437835,1724826654273,-692.947717,0.00018904,2]
[336437836,1724826654283,-500.0,0.00018936,2]
[336437837,1724826654296,-700.0,0.00019155,2]
[336437838,1724826654307,-5583.70176656,0.00019167,2]
[336437839,1724826654318,-500.0,0.00019172,2]
[336437840,1724826654329,-164.066521,0.00019178,2]
[336437841,1724826654339,-268.771999,0.00019178,2]
[336437842,1724826654350,-251.0,0.00019178,2]
[336437843,1724826654362,-241.82106656,0.0001918,2]
[336437844,1724826654374,-241.82106656,0.0001918,2]
[336437845,1724826654385,-241.82106656,0.0001918,2]
[336437846,1724826654397,-241.82106656,0.0001918,2]
[336437847,1724826654408,-241.82106656,0.0001918,2]
[336437848,1724826654419,-241.82106656,0.0001918,2]
[336437849,1724826654430,-241.82106656,0.0001918,2]
[336437850,1724826654441,-241.82106656,0.0001918,2]
[336437851,1724826654452,-241.82106656,0.0001918,2]
[336437852,1724826654464,-241.82106656,0.0001918,2]
[336437853,1724826654475,-241.82106656,0.0001918,2]
[336437854,1724826654486,-241.82106656,0.0001918,2]
[336437855,1724826654499,-241.82106656,0.0001918,2]
[336437856,1724826654511,-241.82106656,0.0001918,2]
[336437857,1724826654523,-241.82106656,0.0001918,2]
[336437858,1724826654534,-241.82106656,0.0001918,2]
[336437859,1724826654545,-241.82106656,0.0001918,2]
[336437860,1724826654556,-241.82106656,0.0001918,2]
[336437861,1724826654568,-241.82106656,0.0001918,2]
[336437862,1724826654579,-242.32,0.0001918,2]
[336437863,1724826654591,-153.38504374,0.0001918,2]
[336437864,1724826654601,-153.38504374,0.0001918,2]
[336437865,1724826654612,-153.38504374,0.0001918,2]
[336437866,1724826654623,-153.38504374,0.0001918,2]
[336437867,1724826654634,-153.38504374,0.0001918,2]
[336437868,1724826654645,-153.38504374,0.0001918,2]
[336437869,1724826654656,-153.38504374,0.0001918,2]
[336437870,1724826654667,-153.38504374,0.0001918,2]
[336437871,1724826654678,-153.38504374,0.0001918,2]
[336437872,1724826654689,-153.38504374,0.0001918,2]
[336437873,1724826654702,-153.38504374,0.0001918,2]
[336437874,1724826654715,-153.38504374,0.0001918,2]
[336437875,1724826654728,-153.38504374,0.0001918,2]
[336437876,1724826654740,-153.38504374,0.0001918,2]
[336437877,1724826654753,-153.38504374,0.0001918,2]
[336437878,1724826654767,-153.38504374,0.0001918,2]
[336437879,1724826654779,-153.38504374,0.0001918,2]
[336437880,1724826654794,-153.38504374,0.0001918,2]
[336437881,1724826654806,-153.38504374,0.0001918,2]
[336437882,1724826654816,-153.88,0.0001918,2]
[336437883,1724826654826,-500.0,0.00019342,2]
[336437884,1724826654836,-2200.0,0.00019403,2]
[336437885,1724826654846,-5583.70176656,0.0001941,2]
[336437886,1724826654855,-500.0,0.00019423,2]
[336437887,1724826654865,-1800.0,0.00019561,2]
[336437888,1724826654874,-2200.0,0.00019655,2]
[336437889,1724826654884,-1800.0,0.0001966,2]
[336437890,1724826654895,-5583.70176656,0.00019661,2]
[336437891,1724826654904,-1800.0,0.00019675,2]
[336437892,1724826654914,-500.0,0.00019679,2]
[336437893,1724826654923,-1500.0,0.0001979,2]
[336437894,1724826654933,-2200.0,0.00019834,2]
[336437895,1724826654943,-20806.3048966,0.00019863,2]
[336437896,1724826654953,-700.0,0.00019869,2]
[336437897,1724826654962,-2200.0,0.00019874,2]
[336437898,1724826654976,-5583.70176656,0.00019899,2]
[336437899,1724826654987,-150.0,0.00019984,2]
[336437900,1724826654997,-700.0,0.00019988,2]
[336437901,1724826655006,-44460.0052816,0.0001999,2]
[336437902,1724826655017,-21113.3683988,0.0002,2]
[336437903,1724826655027,-151.0,0.0002,2]
[336437904,1724826655037,-151.0,0.0002,2]
[336437905,1724826655048,-34964.7,0.0002,3]
[336437906,1724826655057,-242.921081,0.0002,2]
[336437907,1724826655066,-242.921081,0.0002,2]
[336437908,1724826655076,-300.81455507,0.0002,2]
[336437909,1724826655086,-12900.0,0.0002,2]
[336437910,1724826655096,-1009.00770751,0.0002,7]
[336437912,1724826655106,-151.0,0.0002,2]
[336437913,1724826655115,-151.0,0.0002,2]
[336437914,1724826655125,-151.0,0.0002,2]
[336437915,1724826655135,-503.64031218,0.0002,2]
[336437916,1724826655145,-171.473781,0.0002,2]
[336437917,1724826655155,-446.527744,0.0002,2]
[336437918,1724826655165,-446.527744,0.0002,2]
[336437919,1724826655381,-151.0,0.0002,2]
[336437920,1724826655398,-3127.43486,0.0002,2]
[336437921,1724826655413,-3127.43486,0.0002,2]
[336437922,1724826655422,-2200.0,0.00020023,2]
[336437923,1724826655433,-1500.0,0.00020085,2]
[336437924,1724826655443,-1800.0,0.00020102,2]
[336437925,1724826655454,-1800.0,0.00020107,2]
[336437926,1724826655465,-700.0,0.00020138,2]
[336437927,1724826655474,-500.0,0.00020153,2]
[336437928,1724826655485,-5583.70176656,0.00020171,2]
[336437929,1724826655495,-503.64031218,0.000202,2]
[336437930,1724826655506,-150.0,0.00020231,2]
[336437931,1724826655516,-1500.0,0.00020284,2]
[336437932,1724826655536,-2200.0,0.00020306,2]
[336437933,1724826655546,-150.0,0.00020355,2]
[336437934,1724826655555,-522.0,0.00020355,2]
[336437935,1724826655566,-1490.40798,0.00020355,2]
[336437936,1724826655576,-1490.40798,0.00020355,2]
[336437937,1724826655587,-151.0,0.00020355,2]
[336437938,1724826655598,-500.0,0.00020369,2]
[336437939,1724826655607,-134437.72802251,0.00020377,2]
[336437940,1724826655618,-503.64031218,0.000204,2]
[336437941,1724826655629,-5583.70176656,0.00020412,2]
[336437942,1724826655638,-700.0,0.00020415,2]
[336437943,1724826655647,-150.0,0.00020424,2]
[336437944,1724826655657,-2200.0,0.00020467,2]
[336437945,1724826655666,-286.720188,0.00020548,2]
[336437946,1724826655675,-5389.77550797,0.00020551,15]
[336437947,1724826655684,-150.0,0.00020564,2]
[336437948,1724826655694,-503.64031218,0.000206,2]
[336437949,1724826655706,-1800.0,0.00020607,2]
[336437950,1724826655715,-1800.0,0.00020611,2]
[336437951,1724826655727,-4259.32330553,0.0002066,7]
[336437952,1724826655737,-700.0,0.00020686,2]
[336437953,1724826655746,-750.0,0.00020707,2]
[336437954,1724826655756,-503.64031218,0.000208,2]
[336437955,1724826655765,-500.0,0.00020817,2]
[336437956,1724826655779,-3141.11665332,0.00020819,2]
[336437958,1724826655956,-500.0,0.00010958,2]
[336437959,1724826655970,-500.0,0.00010958,2]
[336437960,1724826655980,-500.0,0.00010958,2]
[336437961,1724826655990,-500.0,0.00011231,2]
[336437962,1724826655999,-2129.87511377,0.00013697,2]